bitfinex/quotes_ETHUSD_20250519
["timestamp","ask_amount","ask_price","bid_price","bid_amount"]
[1747629796934,4.20662964,2377.2,2377.1,31.598]
[1747629797253,4.20662964,2377.2,2377.1,18.175]
[1747629797851,4.20698359,2377.0,2376.9,13.423]
[1747629798050,4.20711441,2377.0,2376.8,13.423]
[1747629798252,4.20658422,2377.3,2376.8,14.7653]
[1747629798459,4.20663684,2377.2,2376.9,0.7875]
[1747629798753,4.20698359,2377.0,2376.9,0.7875]
[1747629799144,4.20698359,2377.0,2376.9,13.423]
[1747629799487,4.20682555,2377.1,2376.5,0.8178]
[1747629799792,4.20758655,2376.7,2376.6,13.423]
[1747629800305,4.20751462,2376.7,2376.6,13.423]
[1747629800843,4.20786871,2376.5,2376.4,31.592]
[1747629801044,4.20771437,2376.6,2375.9,13.423]
[1747629801279,4.20716058,2376.9,2375.9,13.423]
[1747629801485,4.20703425,2377.0,2375.9,16.69704496]
[1747629801656,15.06580291,2377.2,2375.9,13.423]
[1747629801851,28.31280291,2377.2,2375.9,13.423]
[1747629802053,15.06566912,2377.2,2376.1,4.20846074]
[1747629802267,4.20769415,2376.6,2376.2,0.55]
[1747629802588,4.20680661,2377.1,2376.2,0.55]
[1747629802763,4.20839996,2376.2,2376.1,13.423]
[1747629802988,4.20819348,2376.4,2376.1,13.423]
[1747629803351,10.859,2377.2,2376.2,0.59207984]
[1747629803552,0.7554,2377.5,2376.5,0.55]
[1747629803754,4.2066548,2377.2,2376.5,4.75780928]
[1747629803980,4.20682624,2377.1,2376.8,0.55]
[1747629804180,4.20698359,2377.0,2376.9,13.423]
[1747629804479,4.20708312,2377.0,2376.9,13.423]
[1747629804680,4.20556817,2377.8,2376.9,13.423]
[1747629804857,4.20698359,2377.0,2376.9,13.423]
[1747629805052,4.20698359,2377.0,2376.9,13.422]
[1747629805253,4.20698359,2377.0,2376.8,18.17]
[1747629805254,4.20716058,2376.9,2376.8,18.17]
[1747629806347,4.20819028,2376.4,2376.1,0.55]
[1747629806566,0.778,2377.2,2376.3,0.55]
[1747629806881,4.98467341,2377.2,2376.3,0.55]
[1747629807075,0.778,2377.2,2376.3,4.75813201]
[1747629807277,0.8117,2377.7,2376.5,0.55]
[1747629807475,4.20709327,2377.0,2376.6,13.154]
[1747629807678,4.20713182,2377.0,2376.7,26.567]
[1747629807878,4.20634628,2377.4,2376.5,0.55]
[1747629808200,4.20706047,2377.0,2376.8,26.567]
[1747629808366,4.20716058,2376.9,2376.8,26.567]
[1747629808911,0.8117,2377.7,2376.8,26.567]
[1747629809113,4.20678385,2377.2,2376.9,18.718]
[1747629809270,4.20680661,2377.1,2376.9,18.718]
[1747629809463,4.2065172,2377.3,2376.9,18.718]
[1747629809886,4.20663501,2377.2,2376.9,18.718]
[1747629810104,0.8117,2377.7,2376.9,18.168]
[1747629810262,4.20609884,2377.5,2376.9,18.168]
[1747629810595,4.20698359,2377.0,2376.9,18.168]
[1747629810798,4.20698359,2377.0,2376.9,31.252]
[1747629811184,4.20698359,2377.0,2376.9,18.168]
[1747629811384,4.20698359,2377.0,2376.9,31.252]
[1747629811790,4.20686296,2377.1,2376.9,31.252]
[1747629812171,4.20666858,2377.2,2376.9,31.252]
[1747629812394,4.20631268,2377.4,2376.9,31.252]
[1747629812605,4.20671449,2377.2,2376.9,31.252]
[1747629812787,4.20688658,2377.1,2376.9,31.252]
[1747629812966,4.20688142,2377.1,2377.0,13.084]
[1747629813164,4.20698359,2377.0,2376.9,18.168]
[1747629813406,4.20698359,2377.0,2376.9,31.252]
[1747629813578,4.20592193,2377.6,2376.9,31.252]
[1747629813914,4.20698359,2377.0,2376.9,31.252]
[1747629814414,4.20687974,2377.1,2376.9,31.252]
[1747629814595,4.20666494,2377.2,2376.9,31.252]
[1747629815014,4.20682108,2377.1,2376.9,31.252]
[1747629815220,4.20670785,2377.2,2376.9,31.252]
[1747629815421,0.8117,2377.7,2376.9,31.252]
[1747629815612,4.20656079,2377.3,2377.0,13.083]
[1747629815922,4.20657149,2377.3,2377.0,13.083]
[1747629816119,0.8117,2377.7,2377.0,4.75687489]
[1747629816419,1.21273565,2378.1,2377.1,13.083]
[1747629816717,4.20601551,2377.6,2377.1,13.083]
[1747629817098,5.4178036,2378.1,2377.2,0.55]
[1747629817319,0.8142,2378.1,2377.3,4.20636481]
[1747629817495,0.8142,2378.1,2377.2,0.55]
[1747629817496,4.20521751,2378.0,2377.2,8.55]
[1747629817701,4.20577571,2377.7,2377.2,4.75654331]
[1747629817896,4.20604464,2377.6,2377.2,0.55]
[1747629818124,4.20486081,2378.2,2377.1,3.27301581]
[1747629818426,0.39853565,2378.3,2377.3,25.842]
[1747629818723,4.20547284,2377.9,2377.4,4.20613282]
[1747629818897,4.20530259,2378.0,2377.4,4.20615022]
[1747629819100,4.205323,2378.0,2377.5,4.75606142]
[1747629819326,4.69931132,2378.4,2377.4,0.55]
[1747629819490,4.20566515,2377.8,2377.4,0.55]
[1747629820818,4.20572553,2377.8,2377.5,12.745]
[1747629821021,4.20562511,2377.8,2377.5,12.745]
[1747629821320,4.20575997,2377.7,2377.5,12.745]
[1747629821624,4.20585864,2377.7,2377.5,12.745]
[1747629822130,4.20521446,2378.0,2377.6,12.745]
[1747629822291,4.20574504,2377.7,2377.6,12.745]
[1747629823128,4.9612348,2377.8,2377.6,12.744]
[1747629823425,4.20574504,2377.7,2377.6,12.744]
[1747629825736,4.9612348,2377.8,2377.2,12.744]
[1747629825737,4.20645269,2377.3,2377.2,12.744]
[1747629826225,0.7941,2377.1,2375.8,0.32014962]
[1747629826425,4.20698359,2377.0,2376.0,0.7981]
[1747629826721,0.7941,2377.1,2376.0,3.29246522]
[1747629826928,4.20787778,2376.5,2376.0,7.6061569]
[1747629827127,0.7941,2377.1,2376.3,4.20822043]
[1747629827326,4.20747399,2376.8,2376.4,0.55]
[1747629827501,1.32762268,2377.4,2376.5,12.744]
[1747629827823,1.32762268,2377.4,2376.6,0.55]
[1747629828127,4.20707282,2377.0,2376.7,25.9794]
[1747629828620,4.70116382,2377.4,2376.8,12.744]
[1747629829424,4.2070996,2377.0,2376.9,12.745]
[1747629831096,4.20683316,2377.1,2376.9,12.745]
[1747629832038,4.20691719,2377.1,2376.9,12.745]
[1747629832404,4.20698359,2377.0,2376.9,12.745]
[1747629832621,4.20683925,2377.1,2376.9,12.745]
[1747629832925,4.20698359,2377.0,2376.9,12.745]
[1747629834231,4.20698359,2377.0,2376.5,0.55]
[1747629834397,4.20698359,2377.0,2376.5,5.73247681]
[1747629834597,4.20688835,2377.1,2376.6,28.86868072]
[1747629835009,4.20688835,2377.1,2376.6,24.661]
[1747629835211,4.20698446,2377.0,2376.6,24.661]
[1747629835728,4.20628647,2377.4,2376.5,1.52465812]
[1747629835928,4.20761887,2376.7,2376.6,24.607]
[1747629836228,4.20771539,2376.6,2376.4,0.7804]
[1747629836395,4.20743608,2376.8,2376.5,24.586]
[1747629836601,4.20628647,2377.4,2376.5,29.74272271]
[1747629836602,4.20703039,2377.0,2376.5,29.74272271]
[1747629836924,4.20620079,2377.5,2377.0,4.206903]
[1747629837118,4.20606982,2377.6,2377.1,12.404]
[1747629837318,0.49472268,2377.9,2377.2,5.52772314]
[1747629837518,4.20557847,2377.8,2377.3,4.20628851]
[1747629837718,4.70012015,2377.9,2377.2,5.52764832]
[1747629837947,4.20600317,2377.6,2377.2,5.05811377]
[1747629838413,4.20567479,2377.8,2377.2,9.26465593]
[1747629838615,4.20582028,2377.7,2377.2,5.05811377]
[1747629838927,4.20572011,2377.8,2377.3,4.20635894]
[1747629839455,5.03579074,2378.2,2377.4,24.492]
[1747629839615,0.8309,2378.2,2377.4,24.492]
[1747629839821,4.20567639,2377.8,2377.4,24.492]
[1747629840188,4.20513307,2378.1,2377.6,4.20581577]
[1747629840432,4.2051222,2378.1,2377.6,4.75582977]
[1747629840933,0.7744,2378.5,2377.7,12.068]
[1747629841134,4.20547373,2377.9,2377.7,12.068]
[1747629841529,4.20513212,2378.1,2377.7,12.068]
[1747629842039,1.28162268,2378.9,2377.8,1.3779]
[1747629842223,4.20495551,2378.2,2377.8,19.5409]
[1747629842403,4.20503763,2378.1,2377.8,19.5409]
[1747629842603,4.20507447,2378.1,2377.8,19.5409]
[1747629843036,4.20522118,2378.0,2377.8,19.5409]
[1747629843342,4.20380023,2378.8,2377.8,19.5409]
[1747629843638,4.20380023,2378.8,2377.9,4.20531005]
[1747629843639,4.20458849,2378.4,2377.9,4.20531005]
[1747629844307,4.20439559,2378.5,2378.0,0.55]
[1747629844507,4.20433046,2378.5,2378.0,0.55]
[1747629844704,5.48530244,2378.9,2377.8,21.20325676]
[1747629845039,4.20495984,2378.2,2377.9,23.987]
[1747629845243,4.20507823,2378.1,2377.9,12.066]
[1747629845400,4.20521446,2378.0,2377.9,12.066]
[1747629845804,4.20539131,2377.9,2377.8,18.163]
[1747629846018,4.99054939,2378.9,2377.8,30.229]
[1747629846219,4.20484316,2378.3,2377.8,34.43448557]
[1747629846462,4.20457657,2378.4,2377.9,6.34950789]
[1747629846645,4.20484137,2378.3,2377.9,2.14413427]
[1747629846802,4.20461291,2378.4,2377.9,6.34951565]
[1747629847004,4.99053071,2378.9,2378.0,12.065]
[1747629847338,4.20486081,2378.2,2378.1,12.065]
[1747629847540,4.20486081,2378.2,2377.9,11.851]
[1747629847541,4.20539131,2377.9,2377.8,18.163]
[1747629847739,4.204979,2378.2,2377.4,12.065]
[1747629847740,4.20619855,2377.5,2377.4,12.065]
[1747629848067,4.20609884,2377.5,2377.4,12.065]
[1747629848250,4.20586612,2377.7,2377.4,12.065]
[1747629848447,4.20586612,2377.7,2377.2,0.8289]
[1747629848448,4.20580883,2377.7,2377.2,1.15187691]
[1747629848647,4.20592193,2377.6,2377.5,12.065]
[1747629848822,4.20579871,2377.7,2377.5,12.065]
[1747629849452,4.20662964,2377.2,2377.1,18.161]
[1747629850217,4.20657263,2377.3,2377.1,18.161]
[1747629850419,0.8048,2377.9,2377.1,18.161]
[1747629850420,4.20662964,2377.2,2377.1,18.161]
[1747629851478,4.97842964,2377.2,2377.1,18.161]
[1747629851832,0.7547,2377.6,2377.1,18.161]
[1747629852032,0.30762408,2378.0,2377.1,18.161]
[1747629852033,4.20618753,2377.5,2377.1,18.161]
[1747629852232,4.20600619,2377.6,2377.1,24.13690898]
[1747629852439,4.96011434,2377.9,2377.2,4.999585]
[1747629852621,10.07,2378.1,2377.3,4.75640827]
[1747629852834,4.2051298,2378.1,2377.5,0.55]
[1747629853030,4.2051298,2378.1,2377.6,16.27185608]
[1747629853438,4.20486926,2378.2,2377.7,4.20571262]
[1747629853638,4.20574504,2377.7,2377.6,12.066]
[1747629854253,4.20549748,2377.9,2377.6,12.066]
[1747629854448,4.20574504,2377.7,2377.6,12.066]
[1747629854666,4.20552695,2377.9,2377.6,12.066]
[1747629854838,4.20556817,2377.8,2377.7,11.737]
[1747629855277,4.20625526,2377.5,2377.2,12.511]
[1747629855479,4.20625526,2377.5,2377.3,11.737]
[1747629855667,4.20600952,2377.6,2377.3,11.737]
[1747629855851,4.20613227,2377.5,2377.3,11.737]
[1747629856048,0.7593,2378.3,2377.3,20.04150448]
[1747629856252,4.96401751,2378.3,2377.3,20.04150448]
[1747629856452,4.20603256,2377.6,2377.3,11.737]
[1747629856696,4.20604581,2377.6,2377.4,11.737]
[1747629856894,4.20609884,2377.5,2377.4,11.737]
[1747629857093,4.20638598,2377.4,2377.2,0.793]
[1747629857396,4.20609884,2377.5,2377.4,11.737]
[1747629857584,4.20601762,2377.6,2377.4,11.737]
[1747629857903,0.7593,2378.3,2377.5,4.75606633]
[1747629858066,4.20382252,2378.8,2377.5,4.75606633]
[1747629858067,0.7845,2378.6,2377.6,0.7891]
[1747629858255,0.7845,2378.6,2377.7,0.55]
[1747629858457,4.20548063,2377.9,2377.7,0.55]
[1747629858657,4.20525514,2378.0,2377.8,11.737]
[1747629859197,4.20539131,2377.9,2377.8,11.737]
[1747629859697,4.20530333,2378.0,2377.8,11.737]
[1747629859903,4.20464939,2378.4,2377.8,11.737]
[1747629860206,4.20539131,2377.9,2377.8,11.737]
[1747629860501,4.20530006,2378.0,2377.8,11.737]
[1747629860700,4.20514965,2378.1,2377.8,11.737]
[1747629861514,4.20490699,2378.2,2377.8,11.737]
[1747629861698,4.20450723,2378.4,2377.8,11.737]
[1747629861858,4.20532777,2378.0,2377.8,11.737]
[1747629862714,4.20511695,2378.1,2377.8,11.737]
[1747629862871,0.7845,2378.6,2377.8,11.737]
[1747629862872,4.20487998,2378.2,2377.8,11.737]
[1747629863068,4.20531244,2378.0,2377.8,11.737]
[1747629863273,4.20521446,2378.0,2377.8,11.737]
[1747629863482,4.20512783,2378.1,2377.8,11.737]
[1747629863683,0.7845,2378.6,2377.8,16.8224101]
[1747629863894,4.20453536,2378.4,2377.9,4.75527131]
[1747629864204,4.20453536,2378.4,2378.0,18.161]
[1747629864815,0.8133,2379.2,2378.2,1.3345]
[1747629864974,4.20410636,2378.7,2378.2,1.3345]
[1747629865170,4.20451674,2378.4,2378.3,11.736]
[1747629865599,0.8133,2379.2,2378.3,11.736]
[1747629865600,4.20395674,2378.8,2378.3,11.736]
[1747629865812,0.8133,2379.2,2378.3,11.736]
[1747629865988,4.20450723,2378.4,2378.3,11.736]
[1747629866588,4.20377207,2378.9,2378.3,11.736]
[1747629866915,4.20377207,2378.9,2378.4,11.408]
[1747629866916,4.20433046,2378.5,2378.4,11.408]
[1747629868721,4.20424914,2378.6,2378.4,11.408]
[1747629869819,5.01645292,2379.2,2378.4,11.408]
[1747629869976,0.8133,2379.2,2378.4,11.408]
[1747629870393,4.20433046,2378.5,2378.4,11.408]
[1747629870595,4.20346623,2379.0,2378.4,11.408]
[1747629870794,4.20471198,2378.3,2378.1,11.293]
[1747629871028,4.20458509,2378.4,2378.2,11.407]
[1747629871234,4.20346623,2379.0,2378.2,11.407]
[1747629871437,4.20415565,2378.6,2378.3,11.90157725]
[1747629871810,4.20401648,2378.7,2378.3,11.90157725]
[1747629872403,4.20390407,2378.8,2378.3,16.10625217]
[1747629872404,4.20385335,2378.8,2378.3,16.10625217]
[1747629872603,0.8133,2379.2,2378.3,11.90157725]
[1747629872808,4.20425348,2378.6,2378.3,11.407]
[1747629873002,4.20327014,2379.1,2378.3,11.407]
[1747629873205,4.20346967,2379.0,2378.1,0.55]
[1747629873515,4.20424142,2378.6,2378.2,22.641]
[1747629873904,4.20435308,2378.5,2378.2,22.641]
[1747629874102,4.20423895,2378.6,2378.2,25.52149787]
[1747629874605,4.20403634,2378.7,2378.2,29.72635564]
[1747629874926,4.20416221,2378.6,2378.2,25.52149787]
[1747629875248,4.20406864,2378.7,2378.2,29.72633497]
[1747629875543,4.20390049,2378.8,2378.3,4.75460124]
[1747629875709,4.20398009,2378.7,2378.4,3.02760991]
[1747629875919,4.20432964,2378.6,2378.4,3.02760991]
[1747629876116,4.20433046,2378.5,2378.4,3.02760991]
[1747629876306,4.20433046,2378.5,2378.4,11.406]
[1747629876500,4.20421241,2378.6,2378.4,11.406]
[1747629876700,4.2036863,2378.9,2378.4,11.406]
[1747629876912,4.20256356,2379.5,2378.4,11.406]
[1747629877112,4.20411885,2378.7,2378.5,1.1406]
[1747629877511,4.20274018,2379.4,2378.2,0.55]
[1747629877703,4.20423938,2378.6,2378.3,22.521]
[1747629878139,4.20256711,2379.5,2378.4,0.55]
[1747629878343,4.20378579,2378.9,2378.4,4.7544023]
[1747629878542,4.20388007,2378.8,2378.4,0.55]
[1747629878841,4.20388727,2378.8,2378.4,3.6980426]
[1747629879051,4.20390041,2378.8,2378.4,3.6980426]
[1747629879243,4.20398776,2378.7,2378.4,3.6980426]
[1747629879451,4.2036036,2379.0,2378.4,3.6980426]
[1747629879636,4.2037226,2378.9,2378.4,7.90247843]
[1747629879948,4.2037226,2378.9,2378.5,3.46281189]
[1747629880244,4.20256356,2379.5,2378.5,3.46281189]
[1747629880245,4.20402728,2378.7,2378.5,3.46281189]
[1747629880547,4.20402728,2378.7,2378.6,11.086]
[1747629880748,4.20308256,2379.3,2378.6,11.086]
[1747629881048,4.20308256,2379.3,2378.7,11.086]
[1747629881049,4.2037247,2378.9,2378.7,11.086]
[1747629881347,4.20354016,2379.0,2378.7,11.086]
[1747629881513,4.20324592,2379.2,2378.7,18.00033903]
[1747629881909,4.20340266,2379.1,2378.8,8.0]
[1747629882142,0.7851,2379.6,2378.9,18.155]
[1747629882337,4.20303874,2379.3,2378.9,18.155]
[1747629882538,4.20279116,2379.4,2378.9,26.35368448]
[1747629882921,4.20279116,2379.4,2379.0,0.55]
[1747629883258,4.20266138,2379.5,2379.0,12.75343439]
[1747629883455,4.20266138,2379.5,2379.0,23.71943439]
[1747629884413,4.20275583,2379.4,2379.0,19.516]
[1747629884612,4.20275583,2379.4,2379.0,23.6141927]
[1747629884865,4.20286694,2379.4,2379.0,23.6141927]
[1747629885068,4.20265925,2379.5,2379.0,27.8176374]
[1747629885365,4.202809,2379.4,2379.0,23.6141927]
[1747629885565,4.20261139,2379.5,2379.0,27.81751568]
[1747629885772,4.20261139,2379.5,2379.1,4.8530927]
[1747629885971,5.00356281,2379.9,2379.2,11.085]
[1747629885972,0.8017,2379.9,2379.2,11.085]
[1747629886124,4.2026764,2379.5,2379.2,11.085]
[1747629886552,4.20265918,2379.5,2379.2,11.085]
[1747629886754,4.20265918,2379.5,2379.2,4.0981927]
[1747629886920,4.20257567,2379.5,2379.3,11.084]
[1747629887324,4.20273186,2379.5,2379.3,11.084]
[1747629888272,0.8017,2379.9,2379.4,11.084]
[1747629888477,4.20256356,2379.5,2379.4,11.084]
[1747629889020,4.20256356,2379.5,2379.4,12.1924]
[1747629889222,4.20309347,2379.2,2379.1,12.8530927]
[1747629889473,4.20309347,2379.2,2379.1,11.084]
[1747629892061,4.20344682,2379.0,2378.9,18.155]
[1747629892362,4.20344682,2379.0,2378.9,28.901]
[1747629893667,4.20344682,2379.0,2378.9,18.155]
[1747629894678,4.80344682,2379.0,2378.9,18.155]
[1747629897849,4.20468401,2378.3,2378.2,18.152]
[1747629900332,0.7698,2378.8,2378.2,19.69048044]
[1747629900742,4.20453733,2378.4,2378.2,19.69048044]
[1747629901066,4.20452234,2378.4,2378.2,19.69048044]
[1747629901437,4.20468401,2378.3,2378.2,19.69048044]
[1747629901668,4.20444045,2378.5,2378.2,19.69048044]
[1747629901836,4.20444045,2378.5,2378.3,2.05057804]
[1747629902181,4.20450723,2378.4,2378.3,2.05057804]
[1747629902388,4.20468401,2378.3,2378.2,19.69048044]
[1747629903047,4.20468401,2378.3,2378.2,18.152]
[1747629903260,4.20468401,2378.3,2378.2,28.901]
[1747629904110,0.49472268,2378.9,2378.2,28.901]
[1747629904285,0.49472268,2378.9,2378.3,11.3095]
[1747629904574,0.49472268,2378.9,2378.4,0.55]
[1747629904774,0.49472268,2378.9,2378.5,1.18595]
[1747629905074,0.49472268,2378.9,2378.6,0.55]
[1747629905275,0.49472268,2378.9,2378.7,10.749]
[1747629905777,0.49472268,2378.9,2378.8,0.55]
[1747629905977,0.49472268,2378.9,2378.8,1.3545]
[1747629906161,0.49472268,2378.9,2378.8,13.45426508]
[1747629906365,0.49472268,2378.9,2378.8,17.65806531]
[1747629906958,6.23446313,2379.7,2379.0,0.55]
[1747629907186,4.20258674,2379.5,2379.1,18.153]
[1747629907386,4.20293922,2379.3,2379.2,10.748]
[1747629907803,4.20275212,2379.4,2379.2,10.748]
[1747629908000,4.20309347,2379.2,2379.1,18.153]
[1747629908165,4.20309347,2379.2,2379.1,28.588]
[1747629908856,4.20309347,2379.2,2379.1,18.153]
[1747629909061,4.20433046,2378.5,2378.4,18.153]
[1747629909381,0.6,2379.0,2378.4,31.565611]
[1747629909898,4.20370734,2378.9,2378.4,31.88335259]
[1747629910072,4.20381232,2378.8,2378.4,31.88335259]
[1747629910660,4.20423968,2378.6,2378.4,31.88335259]
[1747629910861,4.20423968,2378.6,2378.5,10.435]
[1747629911060,4.20402883,2378.7,2378.5,10.435]
[1747629911462,4.20368064,2378.9,2378.5,10.435]
[1747629911670,4.2041537,2378.6,2378.5,10.435]
[1747629911877,4.20394845,2378.8,2378.5,10.435]
[1747629912088,4.20413849,2378.7,2378.6,0.55]
[1747629912329,4.20413849,2378.7,2378.5,10.435]
[1747629912330,4.20411198,2378.7,2378.5,13.2938]
[1747629912508,4.2041537,2378.6,2378.5,13.2938]
[1747629913268,0.8208,2379.2,2378.5,13.2938]
[1747629913468,4.20388523,2378.8,2378.5,13.2938]
[1747629913806,4.20370704,2378.9,2378.6,4.0981927]
[1747629914133,4.20353187,2379.0,2378.6,4.8996927]
[1747629914604,4.20397696,2378.7,2378.6,4.0981927]
[1747629914912,4.20397696,2378.7,2378.6,10.435]
[1747629915263,4.20274018,2379.4,2378.4,18.46270588]
[1747629915264,4.2041537,2378.6,2378.4,18.46270588]
[1747629915490,4.20429124,2378.6,2378.5,10.435]
[1747629915890,4.20387226,2378.8,2378.5,10.435]
[1747629916091,4.20385305,2378.8,2378.5,14.40398]
[1747629916287,4.2041537,2378.6,2378.5,10.435]
[1747629916726,4.20433046,2378.5,2378.4,18.153]
[1747629916930,4.20433046,2378.5,2378.4,28.588]
[1747629917499,4.20556817,2377.8,2377.7,18.59951004]
[1747629917822,4.20556817,2377.8,2377.7,29.03451004]
[1747629918406,4.20556817,2377.8,2377.7,0.44651004]
[1747629919431,4.20609884,2377.5,2377.4,10.435]
[1747629919800,4.20609884,2377.5,2377.4,10.78613258]
[1747629920129,4.20542251,2377.9,2377.4,10.78613258]
[1747629920130,0.8145,2378.2,2377.4,10.78613258]
[1747629920333,4.20573448,2377.8,2377.5,0.35111781]
[1747629920511,4.2058444,2377.7,2377.5,0.35111781]
[1747629920910,4.20564596,2377.8,2377.5,0.35111781]
[1747629921205,0.8145,2378.2,2377.5,0.35111781]
[1747629921404,4.20588595,2377.7,2377.5,0.35111781]
[1747629921650,0.49472268,2378.4,2377.5,1.61931092]
[1747629921831,4.20575723,2377.7,2377.6,10.436]
[1747629922039,4.20575723,2377.7,2377.6,10.78710304]
[1747629923241,4.20575723,2377.7,2377.6,0.35110304]
[1747629923398,4.98205723,2377.7,2377.6,0.35110304]
[1747629924625,4.20609884,2377.5,2377.4,10.437]
[1747629926512,4.98211334,2377.7,2377.0,18.153]
[1747629926836,4.20636861,2377.4,2377.1,10.438]
[1747629926997,4.20646491,2377.3,2377.1,10.438]
[1747629927201,4.20680661,2377.1,2377.0,18.153]
[1747629927405,4.20680661,2377.1,2377.0,28.591]
[1747629927731,4.20631057,2377.4,2377.0,28.591]
[1747629927732,4.20637623,2377.4,2377.0,28.591]
[1747629927904,7.9359736,2378.2,2377.1,3.6235]
[1747629927905,0.7882,2378.0,2377.1,3.6235]
[1747629928241,4.20583839,2377.7,2377.1,18.03821759]
[1747629928532,4.20594554,2377.6,2377.2,0.55]
[1747629928732,4.20539131,2377.9,2377.4,4.20613403]
[1747629928937,4.20539131,2377.9,2377.5,10.8596134]
[1747629929164,0.822,2378.3,2377.5,10.8596134]
[1747629929351,4.20590331,2377.7,2377.5,10.8596134]
[1747629929519,4.20627301,2377.5,2377.4,10.209]
[1747629929719,4.20627301,2377.5,2377.4,20.648]
[1747629930042,4.20486081,2378.2,2377.1,3.6235]
[1747629930247,4.20609884,2377.5,2377.4,10.439]
[1747629931159,4.20680661,2377.1,2377.0,18.153]
[1747629931344,4.20680661,2377.1,2377.0,28.592]
[1747629931859,4.20602856,2377.6,2377.0,32.79891937]
[1747629932014,4.20602856,2377.6,2377.1,3.73158574]
[1747629932219,0.7586,2377.9,2377.1,3.73158574]
[1747629932524,4.20638735,2377.4,2377.1,3.73158574]
[1747629932721,4.20656568,2377.3,2377.1,3.73158574]
[1747629933155,4.20632905,2377.4,2377.0,28.362]
[1747629933156,4.20680661,2377.1,2377.0,28.362]
[1747629933451,4.2067025,2377.2,2377.0,28.592]
[1747629933616,4.20680661,2377.1,2377.0,28.592]
[1747629936438,4.20799852,2376.5,2376.3,29.1275]
[1747629936744,4.2077786,2376.6,2376.4,11.25341871]
[1747629936950,4.20769712,2376.6,2376.4,11.25341871]
[1747629937461,4.20769712,2376.6,2376.5,10.44]
[1747629937976,4.20760988,2376.7,2376.5,10.44]
[1747629938129,4.20662964,2377.2,2376.5,10.44]
[1747629938449,4.207063,2377.0,2376.5,18.74601042]
[1747629938649,4.20762323,2376.7,2376.5,24.7471927]
[1747629939260,4.20762323,2376.7,2376.6,10.209]
[1747629939858,4.20739643,2376.8,2376.6,10.209]
[1747629940238,4.20724001,2376.9,2376.6,10.209]
[1747629940436,4.96705225,2377.6,2376.6,13.16276572]
[1747629940681,4.20654661,2377.3,2376.8,4.20724197]
[1747629940889,4.20563594,2377.8,2377.1,4.20672114]
[1747629941060,0.7962,2377.9,2377.2,10.209]
[1747629941061,4.20617777,2377.5,2377.2,10.209]
[1747629941266,0.7962,2377.9,2376.9,0.7696]
[1747629941432,4.20751462,2376.7,2376.4,11.02241871]
[1747629941776,4.20753871,2376.7,2376.5,10.209]
[1747629941931,4.20662964,2377.2,2376.5,10.209]
[1747629942134,4.20742816,2376.8,2376.5,13.30700568]
[1747629942465,4.20692305,2377.1,2376.6,0.04207295]
[1747629942627,4.20610905,2377.5,2376.6,0.55]
[1747629942835,5.0097457,2378.0,2376.8,0.55]
[1747629943150,4.20601148,2377.6,2377.1,4.75679461]
[1747629943338,4.20601148,2377.6,2377.2,10.21]
[1747629943541,4.2055121,2377.9,2377.3,4.99011891]
[1747629943733,4.20590432,2377.7,2377.3,0.7838]
[1747629943935,4.20602086,2377.6,2377.3,0.7838]
[1747629944135,4.20542078,2377.9,2377.3,0.7838]
[1747629944368,4.20575927,2377.7,2377.4,3.33653845]
[1747629944665,4.20579515,2377.7,2377.4,3.33653845]
[1747629944866,4.20579515,2377.7,2377.5,10.21]
[1747629944867,4.20592193,2377.6,2377.5,10.21]
[1747629945032,4.20638831,2377.4,2377.2,18.165]
[1747629945233,4.20627576,2377.4,2377.3,10.21]
[1747629945443,4.20645269,2377.3,2377.2,18.165]
[1747629945647,4.20662964,2377.2,2377.1,10.21]
[1747629945970,4.20651532,2377.3,2377.1,10.21]
[1747629946863,4.96435367,2377.7,2377.1,10.21]
[1747629947175,4.20662964,2377.2,2377.1,10.21]
[1747629947371,0.7586,2377.7,2376.6,0.819]
[1747629947534,4.96436886,2377.7,2376.7,22.21486188]
[1747629947733,4.20709864,2377.0,2376.7,22.21486188]
[1747629947937,4.20730524,2376.9,2376.7,1.79886188]
[1747629948135,4.20698359,2377.0,2376.5,18.165]
[1747629948376,4.20698359,2377.0,2376.1,10.65651004]
[1747629948535,4.20839996,2376.2,2376.1,10.65651004]
[1747629948731,4.20824909,2376.3,2376.1,10.65651004]
[1747629948936,4.20730637,2376.9,2376.1,10.65651004]
[1747629949235,4.20723905,2376.9,2376.3,5.03891335]
[1747629949459,18.00729717,2377.5,2376.5,0.55]
[1747629949460,4.20679846,2377.2,2376.5,0.55]
[1747629949679,4.20679846,2377.2,2376.6,10.21]
[1747629949977,4.20679846,2377.2,2376.6,14.41760541]
[1747629950335,4.20679846,2377.2,2376.7,4.2074956]
[1747629950538,4.20676693,2377.2,2376.8,1.44174956]
[1747629951149,4.20691714,2377.1,2376.8,1.44174956]
[1747629951337,0.7523,2377.4,2376.6,10.21]
[1747629951536,4.20658408,2377.3,2376.7,0.04207246]
[1747629951737,4.20647424,2377.3,2376.8,4.20721395]
[1747629951981,4.20666349,2377.2,2376.8,1.86247888]
[1747629952278,4.20653462,2377.3,2376.8,1.86247888]
[1747629952641,4.20738866,2376.8,2376.3,0.8308]
[1747629952841,4.20785911,2376.6,2376.4,10.21]
[1747629953075,4.20691591,2377.1,2376.4,10.21]
[1747629953395,4.20713437,2377.0,2376.4,14.41797224]
[1747629953591,4.20718058,2376.9,2376.5,1.94569317]
[1747629953811,10.9553,2377.4,2376.4,10.21]
[1747629954009,4.20645269,2377.3,2376.4,10.21]
[1747629954186,4.20721082,2376.9,2376.4,14.41803811]
[1747629954379,4.20706623,2377.0,2376.4,14.41803811]
[1747629954606,4.20719102,2376.9,2376.4,10.21]
[1747629954778,4.20646881,2377.3,2376.4,10.21]
[1747629954977,4.2077739,2376.6,2376.4,10.21]
[1747629955473,4.20645269,2377.3,2376.5,5.00769854]
[1747629955704,4.20695152,2377.1,2376.5,5.00769854]
[1747629956011,4.48335002,2377.4,2376.4,21.433]